bitfinex/quotes_SOLUSD_20240705
["timestamp","ask_amount","ask_price","bid_price","bid_amount"]
[1720199678286,7.07788728,134.49,134.38,33.57]
[1720199678479,1.076435,134.49,134.39,21.8724]
[1720199678664,1.076435,134.49,134.4,33.74]
[1720199679478,1.076435,134.49,134.41,100.0]
[1720199679664,1.076435,134.49,134.42,0.17]
[1720199680382,1.076435,134.49,134.43,22.0069]
[1720199681071,27.6304,134.59,134.46,133.57]
[1720199681270,27.6304,134.59,134.49,55.5769]
[1720199681271,20.2,134.59,134.49,55.5769]
[1720199681582,20.2,134.59,134.49,22.0069]
[1720199681583,7.4306,134.58,134.49,22.0069]
[1720199681771,0.2,134.59,134.49,22.0069]
[1720199681972,7.6302,134.59,134.49,22.0069]
[1720199682377,7.4305,134.58,134.49,22.0069]
[1720199682790,7.6301,134.59,134.49,22.0069]
[1720199682994,20.0,134.58,134.49,22.0069]
[1720199683500,27.4305,134.58,134.49,22.0069]
[1720199683670,20.0,134.58,134.49,22.0069]
[1720199684301,0.17,134.57,134.49,22.0069]
[1720199684800,7.4325,134.55,134.49,22.0069]
[1720199684980,7.6027,134.54,134.49,22.0069]
[1720199685387,0.17,134.54,134.49,22.0069]
[1720199685594,0.17,134.55,134.49,22.0069]
[1720199686292,0.17,134.55,134.46,396.3626]
[1720199686293,33.57,134.54,134.46,396.3626]
[1720199686525,7.6034,134.53,134.46,15.5626]
[1720199686689,7.6033,134.53,134.46,15.5626]
[1720199687204,0.17,134.53,134.46,15.5626]
[1720199687704,41.0041,134.52,134.45,6.2172]
[1720199687882,20.17,134.51,134.45,6.2172]
[1720199688619,5.76723644,134.56,134.45,6.2172]
[1720199688787,20.17,134.55,134.45,6.2172]
[1720199688987,7.4328,134.54,134.45,6.2172]
[1720199689286,33.74,134.55,134.45,6.2172]
[1720199689496,20.0,134.54,134.45,6.2172]
[1720199690077,0.17,134.55,134.45,6.2172]
[1720199690280,33.57,134.57,134.46,0.17]
[1720199690480,33.57,134.57,134.47,15.0289]
[1720199691604,20.0,134.56,134.47,15.0289]
[1720199691789,41.0012,134.57,134.47,15.0289]
[1720199692197,7.4317,134.56,134.47,15.0289]
[1720199693403,0.17,134.55,134.47,15.0289]
[1720199693704,33.74,134.55,134.47,15.0289]
[1720199693925,20.0,134.54,134.47,15.0289]
[1720199694116,7.77265735,134.56,134.47,15.0289]
[1720199694317,7.4311,134.57,134.47,15.0289]
[1720199694484,7.4308,134.58,134.47,15.0289]
[1720199694682,20.0,134.57,134.47,15.0289]
[1720199695019,41.0019,134.56,134.47,15.0289]
[1720199695402,7.4328,134.54,134.47,15.0289]
[1720199695711,0.17,134.55,134.47,15.0289]
[1720199695913,7.6025,134.55,134.47,15.0289]
[1720199696423,0.17,134.55,134.47,15.0289]
[1720199696722,7.6022,134.55,134.47,15.0289]
[1720199697089,0.17,134.55,134.47,15.0289]
[1720199698113,0.17,134.56,134.47,15.0289]
[1720199699117,0.2,134.59,134.48,139.7206]
[1720199699300,0.2,134.59,134.49,0.17]
[1720199699705,0.2,134.59,134.5,15.226]
[1720199699885,0.2,134.59,134.51,6.1506]
[1720199700292,0.2,134.59,134.52,149.3853]
[1720199700520,0.2,134.59,134.53,6.4055]
[1720199701395,0.2,134.59,134.55,15.6453]
[1720199701598,0.876435,134.62,134.56,6.4055]
[1720199702120,0.876435,134.62,134.56,139.9755]
[1720199702820,0.04418529,134.64,134.58,48.8227]
[1720199702994,0.04418529,134.64,134.59,0.74047231]
[1720199703306,0.04418529,134.64,134.59,0.17]
[1720199703700,0.04418529,134.64,134.58,48.8227]
[1720199704390,0.04418529,134.64,134.58,15.2527]
[1720199704592,0.04418529,134.64,134.59,0.17]
[1720199705103,0.04418529,134.64,134.59,33.74]
[1720199705504,0.2,134.69,134.61,33.57]
[1720199705805,0.2,134.69,134.62,0.17]
[1720199706013,0.2,134.69,134.63,40.1176]
[1720199706398,0.2,134.69,134.64,16.6898]
[1720199706816,0.876435,134.76,134.66,100.0]
[1720199707013,0.876435,134.76,134.67,33.74]
[1720199707524,0.876435,134.76,134.68,15.9191]
[1720199707696,0.876435,134.76,134.69,6.6103]
[1720199708031,0.876435,134.76,134.69,40.1803]
[1720199708215,0.876435,134.76,134.7,0.17]
[1720199708415,0.876435,134.76,134.71,33.57]
[1720199708813,0.876435,134.76,134.72,0.17]
[1720199709214,0.876435,134.76,134.73,6.3776]
[1720199709514,0.876435,134.76,134.75,15.4781]
[1720199710109,0.2,134.79,134.75,15.6481]
[1720199710603,0.2,134.79,134.75,15.4781]
[1720199711422,7.4207,134.76,134.69,6.3776]
[1720199711624,7.4212,134.75,134.66,15.4781]
[1720199711828,7.4217,134.74,134.66,15.4781]
[1720199712006,7.4223,134.73,134.66,15.4781]
[1720199712832,7.4218,134.74,134.66,15.4781]
[1720199713011,0.17,134.73,134.66,15.4781]
[1720199713206,0.17,134.75,134.66,15.4781]
[1720199713404,6.3281,134.78,134.66,15.4781]
[1720199713405,20.0,134.77,134.66,15.4781]
[1720199714011,20.0,134.77,134.67,0.17]
[1720199714205,20.0,134.77,134.66,15.4781]
[1720199714430,7.4205,134.77,134.66,15.4781]
[1720199714621,20.0,134.76,134.66,15.4781]
[1720199714820,20.0,134.78,134.66,15.4781]
[1720199715028,7.4203,134.77,134.66,15.4781]
[1720199715231,20.0,134.78,134.66,15.4781]
[1720199715232,0.17,134.76,134.66,15.4781]
[1720199715414,0.17,134.77,134.66,15.4781]
[1720199715614,0.17,134.77,134.67,0.17]
[1720199715816,0.17,134.77,134.66,15.4781]
[1720199716017,7.5902,134.77,134.67,0.17]
[1720199716410,0.17,134.77,134.67,0.17]
[1720199716715,7.4213,134.75,134.66,15.4781]
[1720199716922,7.5918,134.74,134.66,15.4781]
[1720199717121,0.17,134.77,134.65,6.3776]
[1720199717314,7.4233,134.71,134.65,6.3776]
[1720199717517,0.17,134.7,134.61,22.1174]
[1720199718114,0.17,134.7,134.6,635.8]
[1720199718308,0.17,134.7,134.57,21.9247]
[1720199718309,7.4261,134.66,134.57,21.9247]
[1720199718513,0.17,134.65,134.57,21.9247]
[1720199720017,7.597,134.65,134.57,6.2869]
[1720199720211,0.17,134.65,134.57,6.2869]
[1720199720727,0.17,134.66,134.57,6.2869]
[1720199721341,20.0,134.69,134.57,6.2869]
[1720199721719,7.4265,134.66,134.57,6.2869]
[1720199722036,7.4266,134.65,134.57,6.2869]
[1720199722538,7.4262,134.66,134.57,6.2869]
[1720199722741,0.17,134.65,134.57,6.2869]
[1720199723240,0.17,134.66,134.57,6.2869]
[1720199724115,7.427,134.65,134.57,6.2869]
[1720199724417,0.17,134.64,134.57,6.2869]
[1720199725347,20.0,134.69,134.57,6.2869]
[1720199725723,7.5953,134.68,134.57,6.2869]
[1720199725926,13.28786118,134.7,134.57,6.2869]
[1720199726138,5.86346118,134.7,134.57,6.2869]
[1720199726334,15.1901172,134.71,134.58,0.17]
[1720199726641,7.7668172,134.71,134.59,16.1095]
[1720199726849,15.1901172,134.71,134.6,0.17]
[1720199727018,7.7668172,134.71,134.6,0.17]
[1720199727566,7.4229,134.72,134.6,0.17]
[1720199727722,7.4234,134.71,134.6,0.17]
[1720199727935,7.76311318,134.73,134.6,0.17]
[1720199728130,7.76311318,134.73,134.61,106.5102]
[1720199728355,5.97812504,134.75,134.62,0.17]
[1720199728653,7.4217,134.74,134.62,0.17]
[1720199728853,7.76204967,134.75,134.61,6.5102]
[1720199729058,7.4231,134.72,134.61,6.5102]
[1720199729360,7.76204967,134.75,134.61,6.5102]
[1720199729554,20.0,134.74,134.61,6.5102]
[1720199729755,0.17,134.73,134.61,6.5102]
[1720199730346,7.4229,134.72,134.61,6.5102]
[1720199730548,0.17,134.71,134.61,6.5102]
[1720199731460,7.4257,134.67,134.61,6.5102]
[1720199731759,0.17,134.66,134.61,6.5102]
[1720199732333,0.17,134.67,134.61,6.5102]
[1720199733344,20.17,134.68,134.61,6.5102]
[1720199734568,27.5951,134.68,134.61,6.5102]
[1720199736166,20.17,134.68,134.57,6.5933]
[1720199736359,7.4281,134.63,134.57,6.5933]
[1720199736575,0.17,134.62,134.57,6.5933]
[1720199737447,0.17,134.63,134.57,6.5933]
[1720199737760,7.5981,134.63,134.57,6.5933]
[1720199738272,0.17,134.63,134.57,6.5933]
[1720199738769,7.5981,134.63,134.57,6.5933]
[1720199738970,15.36643349,134.63,134.57,6.5933]
[1720199739971,7.93833349,134.63,134.57,6.5933]
[1720199740271,0.17,134.63,134.57,6.5933]
[1720199741257,30.0,134.64,134.57,6.5933]
[1720199741669,7.425,134.68,134.57,6.5933]
[1720199741976,7.7659063,134.7,134.57,6.5933]
[1720199741977,15.1899063,134.7,134.57,6.5933]
[1720199742146,21.01764184,134.7,134.57,6.5933]
[1720199742347,7.7659063,134.7,134.59,6.3621]
[1720199742547,15.1901063,134.7,134.59,6.3621]
[1720199742763,7.7659063,134.7,134.59,6.32949348]
[1720199743062,7.4235,134.71,134.59,6.32949348]
[1720199743271,7.4239,134.7,134.59,6.32949348]
[1720199743775,7.76421493,134.71,134.59,6.32949348]
[1720199744771,38.5602,134.7,134.59,6.32949348]
[1720199744968,7.4254,134.68,134.59,6.32949348]
[1720199745267,27.4255,134.67,134.59,6.32949348]
[1720199745472,27.5955,134.67,134.59,6.32949348]
[1720199746775,15.18791493,134.71,134.59,106.32949348]
[1720199746970,7.76421493,134.71,134.6,0.17]
[1720199747480,7.4229,134.72,134.6,0.17]
[1720199748176,38.89009249,134.74,134.6,0.17]
[1720199748358,7.76344581,134.74,134.62,15.8609]
[1720199748558,7.76344581,134.74,134.63,6.5923]
[1720199748754,7.76344581,134.74,134.64,0.17]
[1720199749062,0.2,134.79,134.66,22.4532]
[1720199749280,7.96045804,134.79,134.66,22.4532]
[1720199749573,7.4205,134.77,134.66,22.4532]
[1720199749773,7.4207,134.76,134.66,22.4532]
[1720199749973,7.96045804,134.79,134.66,22.4532]
[1720199749974,7.4213,134.75,134.66,22.4532]
[1720199750157,13.97810046,134.79,134.66,22.4532]
[1720199750361,20.0,134.78,134.66,22.4532]
[1720199750555,21.39720046,134.79,134.66,122.4532]
[1720199750756,13.97810046,134.79,134.67,0.17]
[1720199751856,20.0,134.78,134.68,6.3994]
[1720199752054,0.2,134.79,134.68,6.3994]
[1720199752382,7.4198,134.78,134.68,6.3994]
[1720199752684,7.95959782,134.79,134.68,6.3994]
[1720199753176,7.4207,134.76,134.68,6.3994]
[1720199753380,0.17,134.75,134.68,6.3994]
[1720199753974,7.422,134.74,134.68,6.3994]
[1720199754182,0.17,134.73,134.68,6.3994]
[1720199754378,20.0,134.74,134.68,6.3994]
[1720199754679,0.17,134.73,134.66,15.8609]
[1720199754864,18.7256,134.73,134.64,6.3363]
[1720199755063,7.4245,134.69,134.64,6.3363]
[1720199755255,0.17,134.68,134.64,6.3363]
[1720199755458,20.0,134.7,134.64,6.3363]
[1720199755764,7.76356284,134.73,134.64,6.3363]
[1720199755957,20.17,134.72,134.64,6.3363]
[1720199756158,7.76356284,134.73,134.64,6.3363]
[1720199756364,7.4212,134.75,134.64,6.3363]
[1720199756665,7.4208,134.76,134.64,6.3363]
[1720199756872,15.18178605,134.77,134.65,0.17]
[1720199757773,7.4206,134.76,134.65,0.17]
[1720199757970,7.76158605,134.77,134.64,6.3363]
[1720199758371,20.0,134.76,134.65,0.17]
[1720199758684,13.44438329,134.78,134.66,15.8201]
[1720199758987,7.4197,134.78,134.66,15.8201]
[1720199759183,0.2,134.79,134.67,6.3485]
[1720199759488,0.2,134.79,134.68,0.17]
[1720199761596,0.2,134.79,134.69,6.0068]
[1720199761768,0.2,134.79,134.7,0.17]
[1720199762086,0.2,134.79,134.71,15.1181]
[1720199762411,21.697,134.91,134.73,6.0068]
[1720199762689,7.4152,134.86,134.74,0.17]
[1720199762894,7.4156,134.85,134.74,0.17]
[1720199763192,7.75545317,134.88,134.74,0.17]
[1720199763368,7.4156,134.85,134.74,0.17]
[1720199763685,7.4153,134.86,134.74,0.17]
[1720199764191,7.75545317,134.88,134.75,121.8744]
[1720199764387,7.75545317,134.88,134.76,0.17]
[1720199764686,1.076435,134.89,134.76,0.17]
[1720199764875,7.4149,134.87,134.76,0.17]
[1720199765259,8.83136625,134.89,134.75,21.8744]
[1720199765466,7.4179,134.81,134.75,21.8744]
[1720199765690,8.83136625,134.89,134.75,21.8744]
[1720199765691,7.4192,134.79,134.75,21.8744]
[1720199766197,18.5447,134.81,134.71,21.4655]
[1720199766401,20.17,134.8,134.71,21.4655]
[1720199766895,0.17,134.8,134.71,21.4655]
[1720199767099,7.4166,134.84,134.71,21.4655]
[1720199767316,0.17,134.83,134.72,100.0]
[1720199767608,8.83136625,134.89,134.72,100.0]
[1720199767609,20.0,134.88,134.72,100.0]
[1720199767813,7.4154,134.86,134.72,100.0]
[1720199768099,14.6166269,134.89,134.76,100.0]
[1720199768405,14.6166269,134.89,134.77,0.17]
[1720199768406,1.076435,134.89,134.77,0.17]
[1720199768701,8.490035,134.89,134.77,0.17]
[1720199769285,1.076435,134.89,134.77,0.17]
[1720199769485,1.076435,134.89,134.78,15.3416]
[1720199769690,1.076435,134.89,134.78,115.3416]
[1720199769888,1.076435,134.89,134.78,15.3416]
[1720199770083,1.076435,134.89,134.78,115.3416]
[1720199770408,1.076435,134.89,134.8,100.0]
[1720199770710,1.076435,134.89,134.81,1.65222578]
[1720199771302,1.076435,134.89,134.82,100.0]
[1720199771627,1.076435,134.89,134.83,0.17]
[1720199771785,0.2,134.99,134.84,122.9636]
[1720199772130,7.4086,134.98,134.85,0.17]
[1720199772310,0.2,134.99,134.86,106.5793]
[1720199772608,0.2,134.99,134.88,100.0]
[1720199772808,0.2,134.99,134.89,0.17]
[1720199773027,0.2,134.99,134.9,16.3843]
[1720199773200,0.2,134.99,134.91,0.17]
[1720199773405,0.2,134.99,134.9,16.3843]
[1720199773720,7.4088,134.98,134.9,16.3843]
[1720199773929,0.2,134.99,134.9,16.3843]
[1720199774298,7.4105,134.95,134.9,16.3843]
[1720199774522,0.2,134.99,134.86,22.8854]
[1720199774819,7.4108,134.94,134.86,22.8854]
[1720199775021,37.49,134.93,134.78,6.3597]
[1720199775193,7.4163,134.84,134.78,6.3597]
[1720199775527,0.17,134.85,134.78,6.3597]
[1720199776122,20.17,134.86,134.78,6.3597]
[1720199776326,0.17,134.86,134.78,6.3597]
[1720199776546,20.17,134.86,134.78,6.3597]
[1720199776822,0.17,134.86,134.78,6.3597]
[1720199777021,7.4165,134.84,134.78,6.3597]
[1720199777194,0.17,134.83,134.78,6.3597]
[1720199777928,0.17,134.84,134.78,6.3597]
[1720199778217,7.4146,134.87,134.78,6.3597]
[1720199778414,20.0,134.86,134.78,6.3597]
[1720199778609,0.17,134.85,134.78,6.3597]
[1720199779005,7.5861,134.85,134.78,6.3597]
[1720199779326,7.4163,134.84,134.78,6.3597]
[1720199779503,0.17,134.83,134.78,6.3597]
[1720199779702,0.17,134.85,134.78,6.3597]
[1720199780311,20.17,134.86,134.78,6.3597]
[1720199780700,7.5852,134.86,134.78,6.3597]
[1720199780896,20.0,134.85,134.78,6.3597]
[1720199781104,7.5863,134.84,134.78,6.3597]
[1720199781326,0.17,134.83,134.78,6.3597]
[1720199782126,7.4173,134.82,134.78,6.3597]
[1720199782324,95.39655402,134.88,134.78,6.3597]
[1720199782528,7.4167,134.83,134.78,6.3597]
[1720199782819,20.17,134.82,134.78,6.3597]
[1720199783226,0.17,134.82,134.78,6.3597]
[1720199783699,20.17,134.82,134.78,6.3597]
[1720199784203,0.17,134.82,134.78,6.3597]
[1720199784717,5.82541869,134.85,134.78,6.3597]
[1720199784909,7.4149,134.87,134.78,6.3597]
[1720199785223,7.4159,134.85,134.78,6.3597]
[1720199785719,32.17925774,134.88,134.78,6.3597]
[1720199785720,7.415,134.87,134.78,6.3597]
[1720199786109,13.64405774,134.88,134.78,6.3597]
[1720199786110,7.4154,134.86,134.78,6.3597]
[1720199786313,7.4147,134.87,134.78,6.3597]
[1720199786819,13.64405774,134.88,134.78,6.3597]
[1720199787021,7.7561965,134.88,134.78,6.3597]
[1720199787202,7.4131,134.9,134.78,6.3597]
[1720199787404,5.75864247,134.9,134.78,6.3597]
[1720199787613,16.46018076,134.91,134.79,0.17]
[1720199788018,7.75444262,134.91,134.8,22.9856]
[1720199788230,7.4114,134.93,134.81,0.17]
[1720199788418,13.25188821,134.93,134.81,0.17]
[1720199788726,7.413,134.9,134.81,0.17]
[1720199789024,7.75207151,134.94,134.8,22.9856]
[1720199789406,7.4124,134.91,134.8,22.9856]
[1720199789819,0.17,134.9,134.8,22.9856]
[1720199790629,0.17,134.91,134.8,22.9856]
[1720199791112,20.17,134.92,134.81,0.17]
[1720199791520,20.0,134.92,134.82,6.4306]
[1720199791826,20.0,134.93,134.82,6.4306]
[1720199792002,27.4116,134.93,134.82,6.4306]
[1720199792201,7.75207151,134.94,134.83,122.1693]
[1720199792398,7.4087,134.98,134.85,106.6325]
[1720199792615,0.2,134.99,134.86,0.17]
[1720199792823,7.94921086,134.99,134.87,121.665]
[1720199793123,0.2,134.99,134.88,0.17]
[1720199794127,0.2,134.99,134.87,21.665]
[1720199794336,7.4102,134.95,134.87,21.665]
[1720199794637,18.5257,134.95,134.87,21.665]
[1720199794812,20.0,134.94,134.87,21.665]
[1720199795202,0.17,134.93,134.87,21.665]
[1720199795634,7.4114,134.93,134.87,21.665]
[1720199795825,0.17,134.92,134.87,21.665]
[1720199796132,25.83043248,134.95,134.87,21.665]
[1720199796307,0.17,134.94,134.87,21.665]
[1720199796650,7.5809,134.94,134.87,21.665]
[1720199797139,7.5807,134.94,134.87,21.665]
[1720199797338,7.4086,134.98,134.87,21.665]
[1720199798016,7.6081,134.99,134.87,21.665]
[1720199798225,6.12749257,134.99,134.87,21.665]
[1720199798408,13.53559257,134.99,134.87,21.665]
[1720199798917,7.6081,134.99,134.87,21.665]
[1720199799166,0.2,134.99,134.88,106.5892]
[1720199799429,0.2,134.99,134.89,6.0142]
[1720199799927,0.2,134.99,134.9,0.17]
[1720199800234,0.2,134.99,134.89,6.0142]
[1720199800430,0.2,134.99,134.91,15.4935]
[1720199800645,0.2,134.99,134.92,6.0467]
[1720199802533,0.2,134.99,134.93,0.17]
[1720199803440,0.2,134.99,134.92,6.0467]
[1720199805140,7.4101,134.96,134.92,6.0467]
[1720199805457,7.4115,134.93,134.84,22.2171]
[1720199805827,7.4123,134.92,134.84,22.2171]
[1720199806023,7.4114,134.93,134.84,22.2171]
[1720199806730,20.17,134.92,134.84,22.2171]
[1720199807443,7.4138,134.89,134.84,6.5617]
[1720199807651,0.17,134.88,134.84,6.5617]
[1720199808156,20.0,134.89,134.84,6.5617]
[1720199808359,64.3348,134.96,134.84,6.5617]
[1720199808548,20.17,134.94,134.84,6.5617]
[1720199808858,7.4128,134.91,134.84,6.5617]
[1720199809062,20.17,134.9,134.84,6.5617]
[1720199809238,7.4145,134.87,134.8,21.7718]
[1720199809434,0.17,134.86,134.8,21.7718]
[1720199809643,64.3408,134.92,134.8,21.7718]
[1720199809854,20.17,134.91,134.8,21.7718]
[1720199810155,27.5827,134.91,134.8,21.7718]
[1720199810365,20.17,134.91,134.8,21.7718]
[1720199810569,7.4143,134.88,134.8,21.7718]
[1720199810767,27.5845,134.87,134.8,21.7718]
[1720199810947,20.17,134.87,134.8,21.7718]
[1720199811340,27.5847,134.87,134.8,21.7718]
[1720199811865,20.17,134.87,134.8,21.7718]
[1720199812068,0.17,134.87,134.8,21.7718]
[1720199812240,37.5845,134.87,134.8,21.7718]
[1720199812570,0.17,134.87,134.8,21.7718]
[1720199813444,7.4152,134.86,134.8,21.7718]
[1720199813766,0.17,134.85,134.8,21.7718]
[1720199813948,0.17,134.87,134.8,21.7718]
[1720199814347,7.5845,134.87,134.8,21.7718]
[1720199815468,0.17,134.87,134.8,21.7718]
[1720199815970,7.5849,134.87,134.8,21.7718]
[1720199816172,7.4151,134.86,134.8,21.7718]
[1720199816472,0.17,134.87,134.8,21.7718]
[1720199817065,7.5845,134.87,134.8,21.7718]
[1720199817266,0.17,134.87,134.8,21.7718]
[1720199817741,15.16806614,134.89,134.8,21.7718]
[1720199817943,7.4134,134.89,134.8,21.7718]
[1720199818844,45.2330613,134.92,134.8,21.7718]
[1720199818845,7.4127,134.91,134.8,21.7718]
[1720199819151,7.4124,134.91,134.8,21.7718]
[1720199819347,7.5829,134.9,134.8,21.7718]
[1720199819569,7.4129,134.9,134.8,21.7718]
[1720199819752,7.4123,134.91,134.8,21.7718]
[1720199819943,15.1649613,134.92,134.8,21.7718]
[1720199820148,15.1649613,134.92,134.81,0.17]
[1720199820452,7.4107,134.94,134.82,6.0737]
[1720199820647,7.4107,134.94,134.83,16.2938]
[1720199820850,7.4103,134.95,134.83,16.2938]
[1720199821170,45.23043185,134.96,134.85,6.2577]
[1720199821171,21.19268098,134.96,134.85,6.2577]
[1720199821347,21.19268098,134.96,134.86,0.17]
[1720199822050,7.4114,134.93,134.85,6.2577]
[1720199822286,7.4122,134.92,134.85,6.2577]
[1720199822653,7.4114,134.93,134.85,6.2577]
[1720199823255,13.78278098,134.96,134.85,6.2577]
[1720199823572,7.75043185,134.96,134.87,6.13]
[1720199823772,0.2,134.99,134.87,6.13]
[1720199823974,7.4085,134.98,134.87,6.13]
[1720199824267,0.2,134.99,134.87,6.13]
[1720199824475,7.4086,134.98,134.87,6.13]
[1720199824771,6.04792164,134.99,134.87,6.13]
[1720199825075,6.04792164,134.99,134.87,106.13]
[1720199825377,6.04792164,134.99,134.84,100.0]
[1720199825378,0.2,134.99,134.9,15.4295]
[1720199827085,0.2,134.99,134.9,115.4295]
[1720199827274,0.2,134.99,134.92,6.5178]
[1720199827649,0.876435,135.03,134.95,100.0]
[1720199828359,0.876435,135.03,134.96,6.1577]
[1720199829873,7.84314587,135.09,135.0,6.1577]
[1720199829874,0.1,135.09,135.0,6.1577]
[1720199830063,0.1,135.09,135.01,20.17]
[1720199830468,0.1,135.09,135.01,20.0]
[1720199831174,0.1,135.09,135.0,6.1577]
[1720199832159,0.1,135.09,135.01,0.17]
[1720199833483,0.1,135.09,135.03,15.2152]
[1720199833672,0.1,135.09,135.04,0.17]
[1720199833885,0.1,135.09,135.03,15.2152]
[1720199834261,7.4033,135.08,135.03,15.2152]
[1720199834459,7.5025,135.09,135.03,15.2152]
[1720199834677,7.5025,135.09,134.98,22.4393]
[1720199834678,7.405,135.05,134.98,22.4393]
[1720199834890,7.5753,135.04,134.98,22.4393]
[1720199835079,7.4057,135.03,134.98,22.4393]
[1720199835262,0.17,135.04,134.98,22.4393]
[1720199835669,7.4036,135.07,134.98,22.4393]
[1720199835964,20.17,135.08,134.98,22.4393]
[1720199836268,0.1,135.09,134.99,20.17]
[1720199836467,0.1,135.09,134.99,120.17]
[1720199836675,0.1,135.09,135.03,15.9463]
[1720199837671,7.5028,135.09,135.03,15.9463]
[1720199838061,0.1,135.09,135.03,15.9463]
[1720199840466,7.4031,135.08,135.02,6.3198]
[1720199841285,7.5736,135.07,135.02,6.3198]
[1720199841705,0.1,135.09,135.02,6.3198]
[1720199842771,7.5028,135.09,135.02,6.3198]
[1720199842970,0.1,135.09,135.02,6.3198]
[1720199844395,0.1,135.09,135.03,0.17]
[1720199844697,0.1,135.09,135.04,15.5603]
[1720199845269,0.1,135.09,135.05,0.17]
[1720199845792,0.1,135.09,135.04,15.5603]
[1720199847888,0.1,135.09,135.05,0.17]
[1720199848090,0.1,135.09,135.04,15.5603]
[1720199848396,0.1,135.09,135.05,0.17]
[1720199849679,0.1,135.09,135.05,20.17]
[1720199850493,0.1,135.09,135.05,0.17]
[1720199850702,0.1,135.09,135.04,15.5603]
[1720199853913,0.1,135.09,135.02,6.3198]
[1720199855397,7.4031,135.08,135.0,15.5942]
[1720199856593,0.27,135.09,135.0,15.5942]
[1720199856799,20.27,135.09,134.99,6.456]
[1720199857182,18.508,135.08,134.99,6.456]
[1720199857483,7.4045,135.06,134.99,6.456]
[1720199857685,0.17,135.05,134.99,6.456]
[1720199857902,7.4046,135.05,134.99,6.456]
[1720199858094,7.5741,135.07,134.99,6.456]
[1720199858298,20.0,135.06,134.99,6.456]
[1720199858501,0.17,135.05,134.99,6.456]
[1720199858994,20.0,135.06,134.99,6.456]
[1720199859592,27.4041,135.06,134.99,6.456]
[1720199860100,7.4047,135.05,134.99,6.456]
[1720199860789,27.74379052,135.06,134.99,6.456]
[1720199860790,35.14809052,135.06,134.99,6.456]
[1720199861584,27.74379052,135.06,134.99,6.456]
[1720199861786,7.4034,135.08,134.99,6.456]
[1720199862003,20.0,135.07,134.99,6.456]
[1720199862200,27.4036,135.07,134.99,6.456]
[1720199862586,7.4031,135.08,134.99,6.456]
[1720199862809,0.1,135.09,134.99,6.456]
[1720199863201,0.1,135.09,135.01,15.9628]
[1720199864897,0.1,135.09,135.02,106.2859]
[1720199865215,0.1,135.09,135.03,0.17]
[1720199865696,0.1,135.09,135.04,100.0]
[1720199865901,0.1,135.09,135.05,0.17]
[1720199866218,0.1,135.09,135.05,20.17]
[1720199866596,0.876435,135.16,135.06,22.7442]
[1720199866898,0.876435,135.16,135.06,122.7442]
[1720199867617,0.876435,135.16,135.07,20.17]
[1720199867924,0.876435,135.16,135.08,100.0]
[1720199868117,0.876435,135.16,135.11,6.2859]
[1720199868322,0.1,135.19,135.12,100.17]